bitfinex/quotes_SOLUSD_20240625
["timestamp","ask_amount","ask_price","bid_price","bid_amount"]
[1719320389705,8.98,136.91,136.87,0.34]
[1719320390219,7.3026,136.94,136.87,0.34]
[1719320390618,8.98,136.91,136.87,0.34]
[1719320390915,9.48981308,136.94,136.87,0.34]
[1719320391435,8.98,136.91,136.87,0.34]
[1719320392019,8.98,136.9,136.86,0.34]
[1719320392831,8.98,136.89,136.86,0.34]
[1719320394033,8.98,136.91,136.86,9.32]
[1719320397515,9.48981308,136.94,136.86,9.32]
[1719320397912,8.98,136.92,136.87,24.3066]
[1719320398118,8.98,136.92,136.88,0.34]
[1719320400633,16.79231308,136.94,136.88,0.34]
[1719320400833,8.98,136.92,136.88,0.34]
[1719320401137,16.79231308,136.94,136.88,0.34]
[1719320401337,8.98,136.91,136.88,0.34]
[1719320401534,9.48981308,136.94,136.88,0.34]
[1719320401839,16.79221308,136.94,136.88,0.34]
[1719320402044,9.48981308,136.94,136.88,0.34]
[1719320402219,8.98,136.92,136.88,0.34]
[1719320403016,8.98,136.91,136.88,0.34]
[1719320403226,9.48981308,136.94,136.88,0.34]
[1719320403415,37.000002,136.96,136.89,65.4182]
[1719320403641,37.000002,136.96,136.93,8.98]
[1719320403942,37.000002,136.96,136.95,8.98]
[1719320404151,37.000002,136.96,136.95,9.32]
[1719320404516,37.000002,136.96,136.95,14.11727369]
[1719320404730,37.000002,136.96,136.95,9.32]
[1719320404935,37.000002,136.96,136.95,0.34]
[1719320405250,45.980002,136.96,136.9,21.1236]
[1719320405543,37.000002,136.96,136.86,15.1971]
[1719320405839,8.98,136.9,136.86,15.1971]
[1719320406224,8.98,136.91,136.86,24.1771]
[1719320406425,37.000002,136.96,136.88,8.98]
[1719320406648,8.98,136.93,136.88,8.98]
[1719320406830,37.000002,136.96,136.88,8.98]
[1719320407024,8.98,136.94,136.86,59.1071]
[1719320407242,8.98,136.94,136.87,0.34]
[1719320407546,8.98,136.93,136.87,64.25]
[1719320407742,37.000002,136.96,136.87,64.25]
[1719320407943,8.98,136.93,136.88,8.98]
[1719320408152,37.000002,136.96,136.89,0.34]
[1719320408525,8.98,136.94,136.89,9.32]
[1719320408716,37.000002,136.96,136.89,9.32]
[1719320408921,37.000002,136.96,136.9,8.98]
[1719320409226,37.000002,136.96,136.92,24.9657]
[1719320409445,37.000002,136.96,136.93,9.32]
[1719320411244,37.000002,136.96,136.94,8.98]
[1719320411425,37.000002,136.96,136.95,0.34]
[1719320411619,37.000002,136.96,136.95,9.32]
[1719320412743,37.000002,136.96,136.95,0.34]
[1719320413149,37.000002,136.96,136.95,0.17]
[1719320413856,37.000002,136.96,136.94,0.34]
[1719320414068,37.000002,136.96,136.93,0.34]
[1719320414235,37.000002,136.96,136.95,0.17]
[1719320414438,37.000002,136.96,136.93,0.34]
[1719320418350,37.000002,136.96,136.93,64.25]
[1719320418552,14.19976085,136.96,136.93,64.25]
[1719320418939,14.19976085,136.96,136.95,43.91]
[1719320419257,14.19976085,136.96,136.95,64.25]
[1719320420657,7.2955,137.07,136.96,15.6845]
[1719320420957,22.5012,137.14,136.99,43.91]
[1719320421262,7.2924,137.13,137.0,91.16]
[1719320421459,22.5012,137.14,137.01,1.6883826]
[1719320421636,7.2923,137.13,137.02,0.17]
[1719320421845,7.2923,137.13,137.02,0.34]
[1719320422154,7.2929,137.12,137.02,0.34]
[1719320422352,35.20720753,137.12,137.02,0.34]
[1719320422542,35.20720753,137.12,137.01,0.34]
[1719320423453,7.2935,137.11,137.01,0.34]
[1719320423656,7.2939,137.1,137.01,0.34]
[1719320424036,22.3845,137.09,137.01,0.34]
[1719320424238,6.1044,137.08,136.98,21.8959]
[1719320424439,13.3995,137.08,136.98,21.8959]
[1719320424865,7.2966,137.05,136.92,21.722]
[1719320425041,26.91,137.06,136.92,21.722]
[1719320425362,42.1927,137.03,136.92,21.722]
[1719320425859,49.4906,137.03,136.92,21.722]
[1719320426472,6.3409,137.02,136.9,15.9857]
[1719320426643,7.3018,136.96,136.86,22.7084]
[1719320427055,34.2109,136.97,136.86,22.7084]
[1719320427764,26.91,137.0,136.86,66.6184]
[1719320427939,7.3002,136.99,136.86,66.6184]
[1719320428141,26.91,137.0,136.86,66.6184]
[1719320428142,34.2093,137.0,136.86,66.6184]
[1719320428743,34.2093,137.0,136.87,0.34]
[1719320428962,34.2093,137.0,136.88,43.91]
[1719320429163,7.2988,137.01,136.89,0.34]
[1719320429478,14.88792419,137.02,136.9,70.82]
[1719320429479,13.6392,137.02,136.9,70.82]
[1719320429774,13.6392,137.02,136.91,0.17]
[1719320429775,7.2999,136.99,136.91,0.17]
[1719320429947,7.2999,136.99,136.91,0.34]
[1719320430141,7.2999,136.99,136.91,0.17]
[1719320431074,7.2992,137.0,136.91,0.17]
[1719320431577,7.2999,136.99,136.91,0.17]
[1719320432065,7.3004,136.98,136.91,0.17]
[1719320433265,7.3009,136.97,136.86,22.7084]
[1719320433474,26.91,136.96,136.86,22.7084]
[1719320433674,7.3026,136.94,136.86,22.7084]
[1719320433883,7.3019,136.95,136.86,22.7084]
[1719320434380,43.2439,136.96,136.86,22.7084]
[1719320434555,7.3019,136.95,136.86,22.7084]
[1719320435366,7.3026,136.94,136.86,22.7084]
[1719320435983,7.302,136.95,136.86,22.7084]
[1719320436186,6.5911,136.94,136.83,43.91]
[1719320436487,7.303,136.93,136.84,20.0]
[1719320436775,13.8937,136.94,136.85,0.17]
[1719320437881,43.2439,136.96,136.85,0.34]
[1719320438079,26.91,136.96,136.85,0.34]
[1719320438381,34.2102,136.99,136.87,43.91]
[1719320438560,15.6374,137.0,136.88,0.34]
[1719320438779,15.6374,137.0,136.89,43.91]
[1719320439078,22.9367,137.0,136.9,0.34]
[1719320439575,7.2993,137.0,136.9,0.34]
[1719320440167,42.09362419,137.01,136.9,0.34]
[1719320440168,49.39242419,137.01,136.9,20.34]
[1719320440371,7.2998,136.99,136.9,20.34]
[1719320440566,15.18362419,137.01,136.9,20.34]
[1719320441764,7.2993,137.0,136.9,20.34]
[1719320441963,15.18362419,137.01,136.9,20.34]
[1719320442295,7.3009,136.97,136.9,0.34]
[1719320442464,7.3014,136.96,136.87,20.0]
[1719320442783,7.301,136.97,136.87,20.0]
[1719320443285,6.6366,137.01,136.87,63.91]
[1719320443487,33.5466,137.01,136.87,63.91]
[1719320443660,42.09362419,137.01,136.87,63.91]
[1719320443860,49.39282419,137.01,136.88,0.17]
[1719320444068,42.09362419,137.01,136.88,0.17]
[1719320444783,35.45702419,137.01,136.88,0.17]
[1719320444976,26.91,137.01,136.9,43.91]
[1719320445182,34.2087,137.01,136.91,0.34]
[1719320445376,26.91,137.01,136.91,0.34]
[1719320445584,7.2977,137.03,136.91,0.34]
[1719320445760,7.2983,137.02,136.91,0.34]
[1719320446382,34.2077,137.03,136.91,64.25]
[1719320446785,16.15721691,137.04,136.93,43.91]
[1719320447080,8.54702419,137.04,136.94,20.34]
[1719320447381,8.54702419,137.07,136.94,20.34]
[1719320447625,8.54702419,137.07,136.94,64.25]
[1719320447754,35.45702419,137.07,136.94,64.25]
[1719320447959,35.45702419,137.07,136.94,65.93924566]
[1719320448157,15.84302419,137.07,136.96,43.91]
[1719320448359,15.84302419,137.07,136.97,0.34]
[1719320448790,8.54702419,137.07,136.98,16.376]
[1719320448959,8.54702419,137.07,136.99,0.34]
[1719320449596,7.2961,137.06,136.99,0.34]
[1719320450094,35.45702419,137.07,136.99,0.34]
[1719320450263,7.2961,137.06,136.99,0.34]
[1719320450680,7.297,137.05,136.98,16.376]
[1719320450881,7.2961,137.06,136.98,16.376]
[1719320451182,7.2967,137.05,136.98,16.376]
[1719320453607,7.2961,137.06,136.99,0.34]
[1719320454401,7.2967,137.05,136.99,0.34]
[1719320455212,34.2057,137.07,136.99,0.34]
[1719320455383,7.2961,137.06,136.99,0.34]
[1719320455818,7.2967,137.05,136.99,0.34]
[1719320456911,7.2973,137.04,136.99,0.34]
[1719320457088,34.2073,137.04,136.99,0.34]
[1719320457291,26.91,137.04,136.99,0.34]
[1719320457590,26.91,137.04,136.99,0.17]
[1719320457799,7.298,137.03,136.99,0.17]
[1719320458690,7.298,137.03,136.95,21.6542]
[1719320458890,7.298,137.03,136.96,0.17]
[1719320459093,34.2073,137.04,136.96,0.17]
[1719320459493,26.91,137.04,136.96,0.17]
[1719320460104,26.91,137.04,136.96,0.34]
[1719320460400,26.91,137.06,136.96,0.34]
[1719320460603,26.91,137.06,136.96,64.23]
[1719320461818,7.2953,137.08,136.96,64.23]
[1719320462022,34.2046,137.09,136.97,60.0052]
[1719320462201,34.2046,137.09,136.98,20.34]
[1719320462720,7.295,137.08,136.98,20.34]
[1719320462889,7.295,137.08,136.98,64.23]
[1719320463290,34.2046,137.09,136.98,64.23]
[1719320463514,7.2941,137.1,136.99,50.4303]
[1719320463820,7.2935,137.11,137.0,64.23]
[1719320464489,8.54702419,137.14,137.01,60.3392]
[1719320464695,34.2027,137.13,137.02,20.34]
[1719320465294,7.2928,137.12,137.02,20.34]
[1719320466706,7.2928,137.12,137.03,6.1779]
[1719320466914,7.2928,137.12,137.04,0.34]
[1719320467307,7.2934,137.11,137.04,0.34]
[1719320467821,7.293,137.12,137.04,0.34]
[1719320468613,7.2935,137.11,137.04,0.34]
[1719320468819,7.293,137.12,137.04,0.34]
[1719320469603,34.2025,137.13,137.04,0.34]
[1719320470211,26.91,137.13,137.04,0.34]
[1719320470404,26.91,137.13,137.05,16.4361]
[1719320470618,7.2919,137.14,137.06,0.34]
[1719320470805,26.91,137.15,137.06,0.34]
[1719320471004,34.2013,137.15,137.06,0.34]
[1719320472221,26.91,137.15,137.07,6.0845]
[1719320472418,26.91,137.15,137.08,0.34]
[1719320472803,34.2014,137.15,137.08,0.34]
[1719320473005,7.2923,137.13,137.08,0.34]
[1719320473210,7.2928,137.12,137.07,6.0845]
[1719320473430,7.294,137.1,137.07,6.0845]
[1719320473629,7.2934,137.11,137.07,6.0845]
[1719320473799,7.294,137.1,137.07,6.0845]
[1719320474204,7.294,137.1,137.05,16.4361]
[1719320475314,7.2935,137.11,137.06,0.34]
[1719320475923,34.203,137.12,137.06,0.34]
[1719320476827,26.91,137.12,137.06,0.34]
[1719320478118,34.2029,137.12,137.06,0.34]
[1719320478322,7.2935,137.11,137.06,0.34]
[1719320478511,26.91,137.12,137.05,16.4361]
[1719320478725,7.2953,137.08,137.02,15.0056]
[1719320480027,7.2953,137.08,137.03,0.34]
[1719320480416,34.2045,137.09,137.03,0.34]
[1719320481126,8.54702419,137.15,137.03,0.34]
[1719320481431,34.2024,137.13,137.03,0.34]
[1719320482126,7.2928,137.12,137.03,0.34]
[1719320482741,34.2024,137.13,137.03,0.34]
[1719320483238,26.91,137.13,137.03,0.34]
[1719320483533,7.2931,137.12,137.03,0.34]
[1719320486209,26.91,137.1,137.02,15.0056]
[1719320486416,7.2967,137.05,137.02,15.0056]
[1719320486628,26.91,137.07,137.02,15.0056]
[1719320486827,34.2058,137.07,137.02,15.0056]
[1719320487235,7.2961,137.06,137.02,15.0056]
[1719320487614,34.2056,137.07,137.02,15.0056]
[1719320487939,34.2055,137.07,137.02,15.0056]
[1719320490119,26.91,137.07,137.03,0.34]
[1719320490319,34.2055,137.07,137.03,0.34]
[1719320490833,26.91,137.07,137.03,0.34]
[1719320492047,34.2056,137.07,137.03,0.34]
[1719320492421,7.296,137.06,137.03,0.17]
[1719320492750,26.91,137.07,137.03,0.17]
[1719320492751,34.2057,137.07,137.03,0.17]
[1719320493333,26.91,137.07,137.03,0.34]
[1719320494032,7.60716844,137.1,137.03,0.34]
[1719320494234,8.54702419,137.12,137.03,0.34]
[1719320494235,7.2932,137.12,137.03,0.34]
[1719320494427,7.2924,137.13,137.04,21.7217]
[1719320494625,7.2924,137.13,137.05,0.34]
[1719320495245,7.2929,137.12,137.05,0.34]
[1719320495432,26.91,137.14,137.05,0.34]
[1719320495830,7.2926,137.13,137.05,0.34]
[1719320496041,26.91,137.13,137.05,0.34]
[1719320496442,7.60509204,137.15,137.05,20.34]
[1719320496628,34.2011,137.16,137.05,20.34]
[1719320496826,34.2011,137.16,137.05,64.23]
[1719320497133,34.2011,137.16,137.06,16.0456]
[1719320497332,34.2011,137.16,137.07,0.34]
[1719320498154,7.2913,137.15,137.07,0.34]
[1719320498724,7.60347888,137.18,137.09,15.4569]
[1719320498928,0.8512959,137.2,137.1,0.34]
[1719320499456,0.8512959,137.2,137.11,21.8471]
[1719320499750,0.8512959,137.2,137.12,0.34]
[1719320500320,8.1399959,137.2,137.12,0.34]
[1719320500829,0.8512959,137.2,137.12,0.34]
[1719320502745,0.8512959,137.2,137.11,21.8471]
[1719320503224,8.1400959,137.2,137.11,21.8471]
[1719320503448,7.2892,137.19,137.11,21.8471]
[1719320504352,7.2892,137.19,137.12,0.34]
[1719320504855,7.2896,137.18,137.12,0.34]
[1719320505752,0.8512959,137.2,137.12,0.34]
[1719320506353,7.29,137.18,137.12,0.34]
[1719320506926,7.2893,137.19,137.12,0.34]
[1719320507621,7.2898,137.18,137.12,0.34]
[1719320508950,7.2902,137.17,137.12,0.34]
[1719320511859,8.45568971,137.2,137.12,0.34]
[1719320512035,7.2893,137.19,137.12,0.34]
[1719320512239,8.45568971,137.2,137.12,0.34]
[1719320512436,7.2893,137.19,137.12,0.34]
[1719320512738,8.45568971,137.2,137.12,0.34]
[1719320512739,7.2898,137.18,137.12,0.34]
[1719320513132,8.45568971,137.2,137.12,0.34]
[1719320513543,7.29,137.18,137.12,0.34]
[1719320514251,7.2893,137.19,137.12,0.34]
[1719320514858,7.2897,137.18,137.12,0.34]
[1719320515658,7.2902,137.17,137.12,0.17]
[1719320515854,31.39202419,137.19,137.08,8.45569]
[1719320516057,7.2921,137.14,137.08,8.45569]
[1719320516233,7.2913,137.15,137.08,8.45569]
[1719320516440,7.2913,137.15,137.07,15.4366]
[1719320517467,7.2909,137.16,137.08,0.17]
[1719320517758,7.2913,137.15,137.08,0.17]
[1719320518061,7.2908,137.16,137.08,0.17]
[1719320518262,7.2914,137.15,137.08,0.17]
[1719320518758,7.2914,137.15,137.08,0.34]
[1719320520434,7.2918,137.14,137.08,0.34]
[1719320520738,7.2909,137.16,137.08,0.34]
[1719320520932,7.2913,137.15,137.08,0.34]
[1719320521133,7.2918,137.14,137.08,0.34]
[1719320521758,7.2944,137.1,137.07,15.4366]
[1719320522140,7.2944,137.1,137.01,15.4366]
[1719320522473,7.2947,137.09,137.04,15.3467]
[1719320522667,7.295,137.08,137.04,15.3467]
[1719320522958,7.296,137.06,136.97,22.8049]
[1719320523864,7.2969,137.05,136.97,22.8049]
[1719320524062,18.2377,137.08,136.97,22.8049]
[1719320524265,7.2991,137.01,136.97,16.3331]
[1719320524447,7.2996,137.0,136.93,22.2249]
[1719320524656,34.2296,137.0,136.93,22.2249]
[1719320524855,26.93,137.0,136.93,22.2249]
[1719320526758,47.8441,137.06,136.93,22.2249]
[1719320527071,38.7065,137.06,136.93,66.1149]
[1719320527377,31.41,137.06,136.94,20.17]
[1719320527562,31.41,137.06,136.95,0.17]
[1719320527763,7.2978,137.03,136.95,0.17]
[1719320528068,7.2994,137.0,136.94,0.17]
[1719320528270,7.2993,137.0,136.94,0.17]
[1719320528449,7.2993,137.0,136.93,22.2249]
[1719320528649,7.2988,137.01,136.93,22.2249]
[1719320529864,18.2434,137.04,136.94,0.17]
[1719320530049,18.2461,137.02,136.94,0.34]
[1719320530245,7.2999,136.99,136.94,0.34]
[1719320530454,7.2993,137.0,136.94,0.34]
[1719320531575,7.59620055,137.02,136.94,0.34]
[1719320532755,7.2966,137.05,136.95,15.5544]
[1719320532978,7.2966,137.05,136.96,0.34]
[1719320533155,7.2966,137.05,136.97,6.3513]
[1719320533356,7.59592804,137.07,136.98,0.34]
[1719320533767,7.2964,137.06,136.98,0.34]
[1719320534083,7.59592804,137.07,136.98,0.34]
[1719320534300,7.2975,137.04,136.98,0.34]
[1719320534961,7.2968,137.05,136.98,0.34]
[1719320535980,7.2962,137.06,136.98,0.34]
[1719320536782,7.2966,137.05,136.98,0.34]
[1719320538186,7.2962,137.06,136.98,0.34]
[1719320538981,7.2962,137.06,136.99,16.3142]
[1719320539283,7.2962,137.06,137.0,0.17]
[1719320539786,7.59592804,137.07,137.0,0.17]
[1719320539958,7.2946,137.09,137.0,0.17]
[1719320540155,14.90230258,137.1,137.01,6.4695]
[1719320540357,14.90230258,137.1,137.02,0.17]
[1719320540864,7.2954,137.08,137.02,0.17]
[1719320541053,7.2954,137.08,137.02,0.34]
[1719320541283,7.2955,137.07,137.02,0.34]
[1719320541673,7.2963,137.06,137.02,0.34]
[1719320541897,7.2974,137.04,137.01,6.4695]
[1719320542193,18.2377,137.08,137.01,6.4695]
[1719320542394,7.2974,137.04,137.01,6.4695]
[1719320542881,7.2977,137.03,136.99,16.3142]
[1719320543091,149.651,137.06,136.97,6.0597]
[1719320543253,18.2434,137.04,136.96,15.9205]
[1719320543459,7.2994,137.0,136.96,15.9205]
[1719320543657,7.2989,137.01,136.96,15.9205]
[1719320543878,7.2983,137.02,136.96,15.9205]
[1719320544066,7.2972,137.04,136.96,15.9205]
[1719320545166,7.2976,137.03,136.97,0.34]
[1719320546760,7.2973,137.04,136.97,0.34]
[1719320547998,7.2976,137.03,136.97,0.34]
[1719320548289,7.2983,137.02,136.97,0.34]
[1719320549698,7.2978,137.03,136.97,0.34]
[1719320550994,7.2982,137.02,136.97,0.34]
[1719320551387,7.2978,137.03,136.97,0.34]
[1719320551590,16.6007,137.08,136.98,6.0031]
[1719320551772,7.297,137.05,136.99,0.34]
[1719320552793,7.2967,137.05,136.99,0.34]
[1719320553167,7.296,137.06,136.99,0.34]
[1719320553373,7.2956,137.07,136.99,0.34]
[1719320553876,7.2952,137.08,137.0,15.8182]
[1719320554085,7.2952,137.08,137.01,0.34]
[1719320554288,15.84152419,137.09,137.01,0.34]
[1719320554468,14.91450683,137.1,137.01,0.34]
[1719320554667,7.2933,137.12,137.02,6.2607]
[1719320554882,7.2933,137.12,137.03,0.34]
[1719320555083,7.2935,137.11,137.03,0.34]
[1719320555488,7.2935,137.11,137.04,16.2702]
[1719320555694,15.84002419,137.12,137.05,0.34]
[1719320556079,7.2934,137.11,137.05,0.34]
[1719320557087,8.54702419,137.12,137.05,0.34]
[1719320557292,7.2921,137.14,137.05,0.34]
[1719320558176,7.2921,137.14,137.06,6.5221]
[1719320558374,7.2921,137.14,137.07,0.34]
[1719320558884,7.2914,137.15,137.07,0.34]
[1719320559293,7.2925,137.13,137.07,0.34]
[1719320559882,15.83832419,137.15,137.07,0.34]
[1719320560476,7.292,137.14,137.07,0.34]
[1719320560877,7.2924,137.13,137.07,0.34]
[1719320561568,7.2929,137.12,137.07,0.34]
[1719320562194,7.2925,137.13,137.07,0.34]
[1719320564197,7.2928,137.12,137.07,0.34]
[1719320564394,7.2925,137.13,137.07,0.34]
[1719320565890,7.2929,137.12,137.07,0.34]
[1719320566105,7.2934,137.11,137.07,0.34]
[1719320566400,26.87,137.11,137.06,6.5221]
[1719320566692,7.2944,137.1,137.06,6.5221]
[1719320567717,7.2944,137.1,137.07,0.17]
[1719320567899,7.2944,137.09,137.06,6.5221]
[1719320569175,7.2941,137.1,137.06,6.5221]
[1719320569576,7.2945,137.09,137.05,0.17]
[1719320569790,7.2945,137.09,137.05,0.34]
[1719320570177,7.2941,137.1,137.05,0.34]
[1719320571888,34.1636,137.11,137.05,0.34]
[1719320572098,26.87,137.11,137.05,0.34]
[1719320572678,7.2923,137.14,137.05,0.34]
[1719320572878,7.2924,137.13,137.05,0.34]
[1719320573483,7.2928,137.13,137.05,0.34]
[1719320573778,7.2929,137.12,137.05,0.34]
[1719320574491,7.2937,137.11,137.05,0.34]
[1719320574683,34.1637,137.11,137.05,0.34]
[1719320575705,26.87,137.11,137.05,0.34]
[1719320576205,7.2942,137.1,137.05,0.34]
[1719320577285,26.87,137.11,137.05,0.34]
[1719320578204,34.1637,137.11,137.05,0.34]
[1719320578592,126.77632419,137.15,137.05,0.34]
[1719320578797,26.87,137.11,137.05,0.34]
[1719320579005,34.1637,137.11,137.05,0.34]
[1719320580795,26.87,137.11,137.05,0.34]
[1719320581307,34.1634,137.11,137.05,0.34]
[1719320583210,26.87,137.11,137.05,0.34]
[1719320583505,34.1634,137.11,137.05,0.34]
[1719320584709,26.87,137.11,137.05,0.34]
[1719320585005,7.2944,137.09,137.05,0.17]
[1719320585403,7.2941,137.1,137.05,0.17]
[1719320585784,26.87,137.11,137.05,0.17]
[1719320585990,26.87,137.11,137.05,0.34]
[1719320586216,34.1635,137.11,137.05,0.34]
[1719320589199,26.87,137.11,137.05,0.34]
[1719320589410,7.2947,137.09,137.05,0.17]
[1719320589606,26.87,137.11,137.04,16.2702]
[1719320589797,7.2961,137.06,137.02,6.4291]
[1719320590007,7.2957,137.07,137.02,6.4291]
[1719320590204,34.1652,137.08,137.02,6.4291]
[1719320590914,26.87,137.08,137.02,6.4291]
[1719320591102,26.87,137.08,137.03,0.34]
[1719320591493,34.165,137.08,137.03,0.34]
[1719320591812,7.2956,137.07,137.03,0.34]
[1719320592010,26.87,137.08,137.03,0.34]
[1719320592187,7.2952,137.08,137.03,0.34]
[1719320592387,34.1652,137.08,137.03,0.34]
[1719320592794,7.2966,137.05,137.02,6.4291]
[1719320592996,26.87,137.05,137.0,16.5663]
[1719320593292,7.2988,137.01,136.98,6.3451]
[1719320593498,26.87,137.02,136.96,16.4392]
[1719320593708,34.1685,137.02,136.96,16.4392]
[1719320594297,7.2993,137.0,136.96,16.4392]
[1719320594494,34.1699,136.99,136.92,15.6698]
[1719320594803,26.87,136.99,136.92,15.6698]
[1719320595616,34.1699,136.99,136.92,15.6698]
[1719320596012,26.87,136.99,136.92,15.6698]
[1719320596894,26.87,136.99,136.93,0.34]
[1719320598800,26.87,137.02,136.93,0.34]
[1719320599813,34.1682,137.02,136.93,0.34]
[1719320600199,7.2975,137.04,136.94,21.368]
[1719320600397,34.1675,137.04,136.95,0.34]
[1719320600618,7.2982,137.02,136.95,0.34]
[1719320601000,7.2978,137.03,136.95,0.34]
[1719320601313,35.41702419,137.04,136.95,0.34]
[1719320601314,7.2985,137.02,136.95,0.34]
[1719320604507,7.2978,137.03,136.95,0.34]
[1719320604707,35.41702419,137.04,136.95,0.34]
[1719320605114,7.2977,137.03,136.95,0.34]
[1719320605513,7.2982,137.02,136.95,0.34]
[1719320607503,7.2978,137.03,136.95,0.34]
[1719320607932,42.71412419,137.04,136.95,0.34]
[1719320608136,15.84412419,137.04,136.95,0.34]
[1719320608711,7.2977,137.03,136.95,0.34]
[1719320608927,7.2982,137.02,136.95,0.34]
[1719320609223,34.1678,137.03,136.95,0.34]
[1719320610497,7.2983,137.02,136.95,0.34]
[1719320611137,34.1678,137.03,136.95,0.34]
[1719320611732,7.2982,137.02,136.95,0.34]
[1719320613028,34.1677,137.03,136.95,0.34]
[1719320614831,7.2982,137.02,136.95,0.34]
[1719320615900,26.87,137.03,136.95,0.17]
[1719320615901,7.2987,137.01,136.95,0.17]
[1719320616129,7.2987,137.01,136.94,21.368]
[1719320617429,7.2987,137.01,136.95,0.17]
[1719320617610,7.2983,137.02,136.95,0.34]
[1719320619825,34.1678,137.03,136.95,0.34]
[1719320620137,7.2978,137.03,136.95,0.34]
[1719320620429,34.1678,137.03,136.95,0.34]
[1719320620636,8.97,136.98,136.95,0.34]
[1719320621419,8.97,136.97,136.95,0.34]
[1719320621927,7.2982,137.02,136.95,0.34]
[1719320622111,8.97,136.98,136.95,0.34]
[1719320622532,7.2982,137.02,136.95,0.34]
[1719320622837,8.97,136.98,136.95,0.34]
[1719320623518,7.2982,137.02,136.95,0.34]
[1719320623834,8.97,136.98,136.95,0.34]
[1719320624333,7.2979,137.03,136.95,0.34]
[1719320624627,8.54702419,137.04,136.95,9.31]
[1719320624811,8.97,137.01,136.96,8.97]
[1719320625012,8.97,137.01,136.97,0.34]
[1719320626635,8.54702419,137.04,136.98,22.9503]
[1719320626822,7.2958,137.07,136.99,0.34]
[1719320627011,8.97,137.03,136.99,0.34]
[1719320627634,8.97,137.02,136.99,0.34]
[1719320628628,7.2961,137.06,136.99,0.34]
[1719320629632,35.44702419,137.07,136.98,22.9503]
[1719320629828,7.2973,137.04,136.98,22.9503]
[1719320630310,7.2971,137.04,136.98,22.9503]
[1719320631236,7.2971,137.04,136.99,0.17]
[1719320631423,7.2971,137.04,136.99,0.34]
[1719320634448,8.54702419,137.06,136.99,0.34]
[1719320636429,15.84312419,137.06,136.99,0.34]
[1719320640145,8.54702419,137.06,136.99,0.34]
[1719320640345,15.84302419,137.06,136.99,0.34]
[1719320641016,8.54702419,137.06,136.99,0.34]
[1719320641222,34.1952,137.08,136.99,0.34]
[1719320642145,7.2955,137.07,136.99,0.34]
[1719320642546,7.296,137.06,136.99,0.34]
[1719320642846,7.2971,137.04,136.98,22.9503]
[1719320643440,34.1967,137.05,136.98,22.9503]
[1719320644140,34.1967,137.05,136.99,0.17]
[1719320644442,7.2971,137.04,136.99,0.34]